Cogmind - Beta 13 @@@ ROGUE MODE // 2024.04.18 @ 19:49:37 Player: Destreich Result: Destroyed by Y-54 Guardian with Gatling Laser Performance ------------- Evolutions (3) 1500 Regions Visited (4) 800 Robots Destroyed (44) 220 Value Destroyed (1448) 1448 Prototype IDs (3) 60 Alien Tech Used (0) 0 Bonus (8) 8 TOTAL SCORE: 4036 Bonus ------- High Alert Combat Kills 8 Cogmind --------- Core Integrity 0/700 Matter 64/300 Energy 100/100 System Corruption 2% Temperature Cool (7) Movement Flying (35) Location -7/Factory Parts ------- > --- POWER (1) -------- (None) > --- PROPULSION (4) --- Cooled VTOL Module > --- UTILITY (4) ------ (None) > --- WEAPON (4) ------- Mini Grenade Launcher > --- INVENTORY (5) ---- Micro Nuclear Core Micro Nuclear Core Light Treads Improved Medium Armor Plating Heavy Flail Peak State ------------ > --- POWER ------------ Improved Deuterium Engine > --- PROPULSION ------- Light Treads Light Treads Light Treads Medium Treads > --- UTILITY ---------- Large Storage Unit Improved Signal Interpreter Hardened Heavy Armor Plating > --- WEAPON ----------- Heavy Assault Rifle High-powered Shotgun Gauss Rifle Flak Cannon > --- INVENTORY -------- Light Nuclear Core Light Treads Light Treads Small Storage Unit Kinecellerator Improved Light Armor Plating Improved Medium Armor Plating Improved Medium Armor Plating Improved Medium Armor Plating Improved Medium Armor Plating Arc Projector Arc Projector Pulse Rifle Grenade Launcher Heavy Flail [Rating: 39] Favorites ----------- Power Light Nuclear Core Engine Ion Engine Power Core Light Nuclear Core Propulsion Light Treads Treads Light Treads Leg Aluminum Leg Flight Unit Cooled VTOL Module Utility Signal Interpreter Device Improved Heat Sink Storage Small Storage Unit Processor Signal Interpreter Protection Improved Medium Armor Plating Weapon Heavy Assault Rifle Energy Gun Arc Projector Ballistic Gun Heavy Assault Rifle Ballistic Cannon Flak Cannon Launcher Mini Grenade Launcher Build | -11 -10 -9 -8 -7 ------- Run | Yrd Mat Mat Mat Fac Slots Evolved 6 | . . 2 2 2 Power . | . . . . . Propulsion 2 | . . 2 . . Utility 2 | . . . 2 . Weapon 2 | . . . . 2 Parts Attached 54 | . 1 14 17 22 Power 9 | . . 2 4 3 Engine 2 | . . 1 . 1 Core 7 | . . 1 4 2 Reactor . | . . . . . Propulsion 18 | . . 8 4 6 Treads 16 | . . 8 4 4 Leg . | . . . . . Wheel . | . . . . . Hover . | . . . . . Flight 2 | . . . . 2 Utility 12 | . 1 . 5 6 Device 1 | . . . . 1 Storage 1 | . . . 1 . Processor 2 | . 1 . . 1 Hackware . | . . . . . Protection 8 | . . . 4 4 Artifact . | . . . . . Weapon 15 | . . 4 4 7 Energy Gun 3 | . . . . 3 Energy Cannon . | . . . . . Ballistic Gun 10 | . . 4 3 3 Ballistic Cannon 1 | . . . 1 . Launcher 1 | . . . . 1 Special Weapon . | . . . . . Impact Weapon . | . . . . . Slashing Weapon . | . . . . . Piercing Weapon . | . . . . . Special Melee Weapon . | . . . . . Unidentified Prototypes 1 | . . . . 1 Parts Lost 11 | . . 2 1 8 Power 3 | . . 1 1 1 Propulsion 4 | . . . . 4 Utility . | . . . . . Weapon 4 | . . 1 . 3 Highest Loss Streak 6 | . . 1 1 6 To Critical Strikes . | . . . . . Average Slot Usage (%) 88 | . 95 98 97 77 Engine 2 | . 14 2 . . Core 5 | . . 6 8 4 Treads 27 | . . 37 35 22 Leg 3 | . 28 6 . . Storage 8 | . 14 11 9 5 Processor 7 | . 10 11 9 5 Protection 8 | . . . 17 10 Ballistic Gun 19 | . 28 22 15 17 Ballistic Cannon 2 | . . . 1 5 Naked Turns 85 | . . . . 85 Heaviest Build 66 | 12 12 15 40 66 Greatest Support 88 | 20 20 80 80 88 Greatest Overweight (x) 1 | . . . . 1 Average Overweight (x) . | . . . . . Largest Inventory Capacity 15 | . 8 8 15 15 Average Capacity 10 | . 8 8 10 12 Most Carried 15 | . 8 8 11 15 Average Carried 9 | . 6 7 8 12 Final Capacity 15 | 8 8 8 15 5 Final Carried 11 | 6 8 8 11 5 Class Distribution -------------------- 35% | Mutant 34% | Scavenger-Tank 30% | Scavenger-Mutant Dominant Class ---------------- Mutant | -10/Materials Mutant | -9/Materials Scavenger-Mutant | -8/Materials Scavenger-Tank | -7/Factory Resources | -11 -10 -9 -8 -7 ----------- Run | Yrd Mat Mat Mat Fac Matter Collected 1435 | 187 49 428 287 484 Remotely . | . . . . . Salvage Created 1531 | . 98 647 379 407 Parts 88 | . 11 38 22 17 Haulers Intercepted . | . . . . . Recyclers Shooed 3 | . . 3 . . Parts Field Recycled . | . . . . . Retrieved Matter . | . . . . . Parts Self-Destructed . | . . . . . Prevented . | . . . . . Kills | -11 -10 -9 -8 -7 ------- Run | Yrd Mat Mat Mat Fac Combat Hostiles Destroyed 38 | . 5 16 9 8 Guns 34 | . 5 16 8 5 Cannons 3 | . . . 1 2 AOE 1 | . . . . 1 Classes Destroyed 11 | . 2 5 1 3 Worker 1 | . 1 . . . Tunneler 1 | . . 1 . . Recycler 1 | . . . . 1 Operator 1 | . . . 1 . Watcher 2 | . . 1 . 1 Swarmer 11 | . 5 6 . . Grunt 15 | . . 5 7 3 Brawler 1 | . . 1 . . Duelist 1 | . . . . 1 Sentry 8 | . . 4 2 2 Programmer 2 | . . . . 2 Best Kill Streak 8 | . 4 8 5 4 Combat Bots Only 7 | . 3 7 5 4 Max Kills in Single Turn 2 | . 2 1 1 1 Gunslinging 1 | . 1 . . . Exploded 1 | . . . . 1 Melee . | . . . . . Uniques/NPCs Destroyed . | . . . . . Combat | -11 -10 -9 -8 -7 -------- Run | Yrd Mat Mat Mat Fac Hostile Shots Fired 385 | . 15 96 63 211 Missed 121 | . 7 26 16 72 Damage Taken 3969 | . 88 804 723 2354 Core 993 | . . 165 119 709 Absorbed by Shields . | . . . . . Regen/Repaired (Parts) 206 | . . . 206 . Core Remaining (%) 84 | 100 100 58 78 . Volleys Fired 122 | . 13 51 32 26 Largest 4 | . 2 2 2 4 Hottest 120 | . 40 43 67 120 Shots Fired 267 | . 26 102 64 75 Gun 243 | . 26 102 61 54 Cannon 18 | . . . 3 15 Launcher 6 | . . . . 6 Special . | . . . . . Kinetic 261 | . 26 102 64 69 Thermal . | . . . . . Explosive 6 | . . . . 6 Electromagnetic . | . . . . . Robot Hit Streak 12 | . 4 12 11 5 Robot Miss Streak 5 | . 2 4 4 5 Penetration Max 1 | . . . . 1 Secondary Targets 5 | . 1 4 . . Max Gunslinging Chain 1 | . 1 1 . . Shots Hit Robots 186 | . 17 71 49 49 Core Hits 96 | . 8 28 26 34 Critical Kills 3 | . . . 2 1 Critical Parts Destroyed . | . . . . . Critical Strikes 3 | . . . 2 1 Destroy 3 | . . . 2 1 Melee Attacks . | . . . . . Impact . | . . . . . Slashing . | . . . . . Piercing . | . . . . . Sneak Attacks . | . . . . . Combat Hostiles . | . . . . . Follow-up Attacks . | . . . . . Damage Inflicted 2996 | . 135 884 862 1115 Guns 2500 | . 135 884 814 667 Cannons 234 | . . . 45 189 Explosions 223 | . . . . 223 Melee . | . . . . . Ramming 39 | . . . 3 36 Kinetic 2734 | . 135 884 859 856 Thermal . | . . . . . Explosive 223 | . . . . 223 Electromagnetic . | . . . . . Impact . | . . . . . Slashing . | . . . . . Piercing . | . . . . . Highest Corruption 2 | . . . . 2 Average Corruption 1 | . . . . 1 Corruption Purged . | . . . . . Corruption Blocked . | . . . . . Overload Shots . | . . . . . Overflow Damage . | . . . . . Projectiles . | . . . . . Explosions . | . . . . . Melee . | . . . . . Knockbacks 8 | . . . 1 7 Impact . | . . . . . Kinetic 8 | . . . 1 7 Secondary . | . . . . . Self-Inflicted Damage 52 | . . . . 52 Shots 1 | . . . . 1 Rammed 13 | . . . 1 12 Targets Rammed 13 | . . . 1 12 Kicked . | . . . . . Crushed . | . . . . . Highest Temperature 587 | . . 20 114 587 Average Temperature 199 | . . 6 43 308 Received Heat Transfer 1764 | . . 300 414 1050 Effects 39 | . . . . 39 Shutdowns 4 | . . . . 4 Energy Bleed 3 | . . . . 3 Interference 7 | . . . . 7 Matter Decay 8 | . . . . 8 Short Circuit 4 | . . . . 4 Damage (minor) 2 | . . . . 2 Damage (major) 8 | . . . . 8 Damage (core) 3 | . . . . 3 Siege Activations . | . . . . . Robots Corrupted . | . . . . . Combat Hostiles . | . . . . . Parts Fried . | . . . . . Impact Corruptions . | . . . . . Robots Melted . | . . . . . Combat Hostiles . | . . . . . Parts Melted . | . . . . . Heat Transferred . | . . . . . Parts Sabotaged . | . . . . . Parts Stolen . | . . . . . Parts Stripped . | . . . . . Power Chain Reactions . | . . . . . Alert | -11 -10 -9 -8 -7 ------- Run | Yrd Mat Mat Mat Fac Peak Influence 409 | . 145 409 309 264 Initial 76 | . . 61 68 76 Average 124 | . 75 220 139 78 Maximum Alert Level 2 | . . 2 1 1 Low Security (%) 81 | . 100 35 90 97 Level 1 17 | . . 60 9 2 Level 2 . | . . 3 . . Level 3 . | . . . . . Level 4 . | . . . . . Level 5 . | . . . . . High Security . | . . . . . Max Security . | . . . . . Squads Dispatched 15 | . . . 3 12 Investigation 4 | . . . 1 3 Extermination 3 | . . . . 3 Reinforcement 5 | . . . 2 3 Assault . | . . . . . Garrison 3 | . . . . 3 Intercept . | . . . . . Searches Triggered . | . . . . . Construction Impeded . | . . . . . Haulers Reinforced 1 | . . . . 1 Active Scanning Responses . | . . . . . Cargo Convoy Interrupts . | . . . . . Stealth | -11 -10 -9 -8 -7 --------- Run | Yrd Mat Mat Mat Fac Distress Signals 5 | . 1 3 . 1 Communications Jammed . | . . . . . Distress Signals . | . . . . . Times Spotted 64 | . 6 21 13 24 Peak Tracking Total 9 | . 3 8 3 9 Tactical Retreats 5 | . 1 1 . 3 Traps | -11 -10 -9 -8 -7 ------- Run | Yrd Mat Mat Mat Fac Traps Triggered 7 | . 1 . 3 3 Indirectly . | . . . . . Trap Hack Attempts . | . . . . . Triggered . | . . . . . Disarmed . | . . . . . Reprogrammed . | . . . . . Reused . | . . . . . Traps Extracted . | . . . . . Installed . | . . . . . Triggered . | . . . . . Machines | -11 -10 -9 -8 -7 ---------- Run | Yrd Mat Mat Mat Fac Machines Disabled 3 | . . . 1 2 Max in Single Turn 1 | . . . 1 1 Machines Repaired . | . . . . . Machines Dismantled . | . . . . . Machines Sabotaged . | . . . . . Overloaded Fab Kills . | . . . . . Hacking | -11 -10 -9 -8 -7 --------- Run | Yrd Mat Mat Mat Fac Machines Accessed 12 | . 1 3 3 5 Terminals 10 | . 1 3 2 4 Fabricators 1 | . . . . 1 Repair Stations 1 | . . . 1 . Recycling Units . | . . . . . Scanalyzers . | . . . . . Garrison Access . | . . . . . Total Hacks 33 | . 4 5 15 9 Successful 14 | . 2 1 8 3 Failed 19 | . 2 4 7 6 Catastrophic 5 | . . 1 1 3 Database Lockouts . | . . . . . Manual 15 | . 2 3 5 5 Terminals 22 | . 4 5 7 6 Fabricators 3 | . . . . 3 Repair Stations 8 | . . . 8 . Recycling Units . | . . . . . Scanalyzers . | . . . . . Garrison Access . | . . . . . Terminal Hacks 4 | . 1 1 1 1 Part Schematic 1 | . . . 1 . Prototype ID Bank 1 | . 1 . . . Open DSF 1 | . . . . 1 Unreport Threat 1 | . . 1 . . Fabricator Hacks 2 | . . . . 2 Load Schematic 1 | . . . . 1 Build 1 | . . . . 1 Repair Station Hacks 6 | . . . 6 . Scan Component 3 | . . . 3 . Repair 3 | . . . 3 . Recycling Unit Hacks . | . . . . . Scanalyzer . | . . . . . Garrison Access Hacks . | . . . . . Unauthorized Hacks 2 | . 1 . 1 . Terminals 2 | . 1 . 1 . Botnet 2 | . 1 . 1 . Fabricators . | . . . . . Repair Stations . | . . . . . Recycling Units . | . . . . . Scanalyzers . | . . . . . Garrison Access . | . . . . . Data Cores Recovered . | . . . . . Used . | . . . . . Hacking Detections 10 | . . 3 3 4 Full Trace Events 3 | . . . 1 2 Feedback Events . | . . . . . Feedback Blocked . | . . . . . Robot Schematics Acquired . | . . . . . Robots Built . | . . . . . Authchips . | . . . . . Time . | . . . . . Total Robot Build Rating . | . . . . . Part Schematics Acquired 1 | . . . 1 . Parts Built 2 | . . . . 2 Authchips . | . . . . . Time 62 | . . . . 62 Total Part Build Rating 4 | . . . . 4 Parts Repaired 3 | . . . 3 . Time 96 | . . . 96 . Parts Recycled . | . . . . . Recycled Matter . | . . . . . Retrieved Matter . | . . . . . Retrieved Components . | . . . . . Parts Scanalyzed . | . . . . . Part Schematics Acquired . | . . . . . Parts Damaged . | . . . . . Bothacking | -11 -10 -9 -8 -7 ------------ Run | Yrd Mat Mat Mat Fac Used RIF Installer . | . . . . . Robots Hacked . | . . . . . Non-combat . | . . . . . Combat . | . . . . . Robot Hacks Applied . | . . . . . Relay Couplers Released . | . . . . . Fabnet Peak Effective % . | . . . . . Robots Rewired . | . . . . . Allies Hacked . | . . . . . Hacks Repelled . | . . . . . Allies | -11 -10 -9 -8 -7 -------- Run | Yrd Mat Mat Mat Fac Total Allies . | . . . . . Largest Group . | . . . . . Highest-Rated Group . | . . . . . Highest-Rated Ally . | . . . . . Total Orders . | . . . . . Ally Attacks . | . . . . . Total Damage . | . . . . . Kills . | . . . . . Allies Corrupted . | . . . . . Allies Melted . | . . . . . Intel | -11 -10 -9 -8 -7 ------- Run | Yrd Mat Mat Mat Fac Robot Analysis Total . | . . . . . Derelict Logs Recovered . | . . . . . Drone Launches . | . . . . . Drone Recoveries . | . . . . . Exploration | -11 -10 -9 -8 -7 ------------- Run | Yrd Mat Mat Mat Fac Turns Passed 2476 | . 213 590 527 1146 Spaces Moved 1597 | 1 119 252 182 1043 Core 159 | . . . . 159 Treads 896 | . . 252 182 462 Legs 120 | 1 119 . . . Wheels . | . . . . . Hover . | . . . . . Flight 422 | . . . . 422 Fastest Speed 34 | 120 120 160 160 34 Average Speed 113 | 120 120 160 160 92 Slowest Speed 240 | 120 120 160 160 240 Overloaded Moves . | . . . . . Propulsion Burnouts . | . . . . . Robots Hopped 1 | . . . . 1 Cave-ins Triggered . | . . . . . Exploration Rate (%) 22 | 2 27 29 19 37 Regions Visited 4 Branch Regions . Pre-discovered Areas . | . . . . . Known Exits Taken 3 | . 1 1 1 . Unknown Exits Taken 1 | 1 . . . . Scrap Searched . | . . . . . Spaces Dug . | . . . . . Terrain Destroyed 37 | . . . . 37 Melee . | . . . . . Projectile . | . . . . . AOE 37 | . . . . 37 Terrain Rammed . | . . . . . Walls Destroyed . | . . . . . Machines Disabled . | . . . . . Actions | -11 -10 -9 -8 -7 --------- Run | Yrd Mat Mat Mat Fac Total 2018 | . 168 341 350 1159 Wait 184 | . 32 9 107 36 Move 1591 | . 118 251 181 1041 Hop 1 | . . . . 1 Pick Up 24 | . 3 6 6 9 Fast Attach 21 | . 1 3 11 6 Attach 17 | . . 4 3 10 Detach 4 | . . . 1 3 Swap 16 | . . 7 3 6 Drop 25 | . 1 10 5 9 Fire 122 | . 13 51 32 26 Melee . | . . . . . Ram 3 | . . . . 3 Kick . | . . . . . Crush 10 | . . . 1 9 Escape Stasis . | . . . . . Rewire . | . . . . . Trap . | . . . . . Miscellaneous . | . . . . . Route ------- -11/Scrapyard -10/Materials -9/Materials (discovered 2 exits: *Mat / *Min) -8/Materials -7/Factory (discovered 2 exits: [*Fac] / *Low) History --------- Turn | Location | Event 1 | -11/Scrapyard | Discovered new exit (range 0) 1 | -11/Scrapyard | Entered Materials 189 | -10/Materials | Discovered new exit (range 14) 213 | -10/Materials | Identified exit to Materials 214 | -10/Materials | Entered another Materials area 214 | -9/Materials | Evolved 2 slots: Propulsion x2 317 | -9/Materials | Build established: Mutant 454 | -9/Materials | Destroyed 7 combat bots 629 | -9/Materials | Discovered new exit (range 15) 671 | -9/Materials | Identified exit to Mines 777 | -9/Materials | Discovered new exit (range 16) 803 | -9/Materials | Identified exit to Materials 804 | -9/Materials | Entered another Materials area 804 | -8/Materials | Evolved 2 slots: Utility x2 890 | -8/Materials | Met 7R-MNS 908 | -8/Materials | Build established: Scavenger-Mutant 952 | -8/Materials | Repaired Lgt. Nuclear Core 986 | -8/Materials | Repaired Hvy. Assault Rifle 1013 | -8/Materials | Repaired Lgt. Treads 1278 | -8/Materials | Discovered new exit (range 6) 1326 | -8/Materials | Identified exit to Factory 1331 | -8/Materials | Entered Factory 1331 | -7/Factory | Evolved 2 slots: Weapon x2 1332 | -7/Factory | Caught up to 7R-MNS 1499 | -7/Factory | Discovered new exit (range 8) 1512 | -7/Factory | Identified exit to Lower Caves 1599 | -7/Factory | Garrison activated, responded to threat 1635 | -7/Factory | Build established: Scavenger-Tank 1649 | -7/Factory | Discovered new exit (range 11) 1850 | -7/Factory | Fabricated Imp. Hover Unit? 2213 | -7/Factory | Core integrity fell below 50% 2227 | -7/Factory | Released all parts (10) 2230 | -7/Factory | Core integrity fell below 20% 2253 | -7/Factory | Lost 6 parts (1p2n3w) 2477 | -7/Factory | Destroyed by Y-54 Guardian with Gatling Laser Last Messages --------------- 02312_ Acquired Prototype Flight Unit. 02312_ Identified Cld. VTOL Module. 02331_ ALERT: Rogue bot located, Programmers report to Factory Zone 5C. 02342_ Acquired Mni. Grenade Launcher. 02359_ Acquired Xenon Bombardment Thruster. 02379_ Connecting with Terminal... 02398_ Acquired 132 matter. 02420_ Triggered Heavy Explosive Trap. 02420_ An explosion rips through the floor. 02420_ Assembly Bed disabled. 02422_ Connecting with Terminal... 02423_ Xenon Bombardment Thruster destroyed. 02423_ Terminal disabled. 02424_ U-05 Engineer lays Concrete. 02438_ Acquired Mic. Nuclear Core. 02454_ R-06 Scavenger destroyed. 02458_ P-60 Hacker destroyed. 02459_ The unstable cave ceiling collapses. 02460_ U-05 Engineer builds a Wall. 02461_ K-01 Serf collects debris. Map ----- +----------------------------------------------------+ | ?????????????????????????????????????????????????? | | ?????????????????????????????????????????????????? | | ?????????????????????????????????????????????????? | | ?????????????????????????????????????????????????? | | ?????????????????????????????????????????????????? | | ?????????????????????????????????????????????????? | | ?????????????????????????????????????????????????? | | ?????????????????????????????????????????????????? | | ?????????????????????????????????????????????????? | | ?????????????????????????????????????????????????? | | ??????????????????????? k???????????????????????? | | ????????????????????? ???????????????????????? | | ????????????????????# ???????????????????????? | | ????????????????????# k???????????????????????? | | ?####################u ###????????????????????? | | ?# # k #????????????????????? | | ## # k #????????????????????? | | = # #????????????????????? | | # #????????????????????? | | # w / ????????????????? | | #Y #????????????????????? | | # #????????????????????? | | # #????????????????????? | | # #????????????????????? | | # ################# ##????????????????????? | | # """"""" ??# k @ #?????????????????????? | | + """"""" """??# #?????????????????????? | | # """"""" R"#?# #?????????????????????? | | # """"""" """#?# #?????????????????????? | | # #?# #########?????????????? | | # [ #?# ??????? | | # #?# #########?????????????? | | # #?# #?????????????????????? | | # #?# #?????????????????????? | | ######+#######+##### #?????????????????????? | | k #?????????????????????? | | #?????????????????????? | | +?????????????????????? | | #?????????????????????? | | #?????????????????????? | | #?????????????????????? | | #?????????????????????? | | ######+#### #?????????????????????? | | ??????????# #?????????????????????? | | ??????????# #?????????????????????? | | ??????????# #?????????????????????? | | ??????????# #?????????????????????? | | ??????????# #?????????????????????? | | ??????????# #?????????????????????? | | ??????????# #?????????????????????? | +----------------------------------------------------+ Best States ------------- Heat Dissipation 48 Energy Generation 16 Energy Capacity 290 Matter Stores 300 Matter Capacity 300 Sight Range 16 Terrain Scan Density 10 Armor Coverage 600 Evasion (%) 63 Recoil Reduction 4 Item Schematics ----------------- Imp. Hover Unit | -8/Materials | Hacked Robot Schematics ------------------ None Fabricated ------------ Imp. Hover Unit | x2 | -7/Factory Alien Tech Used ----------------- None Achievements -------------- None Challenges ------------ None Game ------ Seed ActivePulseMegatreads Manual? 0 Play Time 00:28:28 Cumulative 11.5 hours Start 2024.04.18 @ 19:21:51 End 2024.04.18 @ 19:49:37 Sessions 1 Manual Loads 0 Difficulty Rogue Special Mode None Game No. 27 Rogue 25 Adventurer 2 Explorer 0 Win Type - Total 0 Types 0/0/0/0/0/0/0/0/0 Lore% 17 Gallery% 21 Achievement% 19 Wizard Run 0 Options --------- Layout 0 ASCII 0 Keyboard 0 Movement Vi Keybinds 0 Fullscreen 2 Font 24/Terminus Map View 76x50 Zoom Use 0% Tactical HUD 1 Map Filters NONE Filters NONE Steam 1 RUN: 43e8779b-6639-4e40-9e4c-6509aac0fc1d